bitfinex-derivatives/quotes_ETHF0:USTF0_20260112
["timestamp","ask_amount","ask_price","bid_price","bid_amount"]
[1768203616013,0.83591615,3150.0,3149.0,1.85995404]
[1768203616326,1.37118028,3150.4,3149.0,1.85995404]
[1768203616524,0.836011,3150.3,3149.0,1.85995404]
[1768203616726,0.836011,3150.2,3149.0,1.85995404]
[1768203616920,0.836011,3150.1,3149.0,1.85995404]
[1768203617120,0.836011,3150.0,3149.0,1.85995404]
[1768203617321,1.21227028,3150.2,3149.0,1.85995404]
[1768203617525,0.83605078,3150.1,3149.0,1.85995404]
[1768203617830,0.83605078,3150.0,3149.0,1.85995404]
[1768203618032,1.21227028,3150.2,3149.0,1.85995404]
[1768203618224,0.83610213,3150.1,3149.0,1.85995404]
[1768203618421,0.83610213,3150.0,3149.0,1.85995404]
[1768203618623,0.83610213,3149.9,3149.0,1.85995404]
[1768203618921,1.21227028,3150.2,3149.0,1.85995404]
[1768203619120,0.83610292,3150.1,3149.0,1.85995404]
[1768203619321,0.83610292,3150.0,3149.0,1.85995404]
[1768203619618,0.83610292,3149.9,3149.0,1.85995404]
[1768203619819,1.21227028,3150.2,3149.0,1.85995404]
[1768203620030,0.8362335,3150.1,3149.0,1.85995404]
[1768203620226,0.8362335,3150.0,3149.0,1.85995404]
[1768203620532,0.8362335,3149.9,3149.0,1.85995404]
[1768203620825,1.21227028,3150.0,3148.8,0.00309133]
[1768203621027,1.21227028,3149.8,3148.8,0.00309133]
[1768203621327,0.79159349,3150.4,3148.8,0.00309133]
[1768203621328,1.21235457,3150.3,3148.8,0.00309133]
[1768203621525,0.83641603,3150.2,3148.8,0.00309133]
[1768203621729,0.83641603,3150.1,3148.8,0.00309133]
[1768203621925,0.83641603,3150.0,3148.8,0.00309133]
[1768203622125,0.83641603,3149.9,3148.8,0.00309133]
[1768203622428,0.83641603,3149.8,3148.8,0.00309133]
[1768203622628,1.21235457,3150.3,3148.8,0.00309133]
[1768203622829,0.83664298,3150.2,3148.8,0.00309133]
[1768203623019,0.83664298,3150.1,3148.8,0.00309133]
[1768203623537,0.83664298,3150.0,3148.8,0.65077509]
[1768203623832,0.83664298,3149.9,3148.8,0.65077509]
[1768203624029,0.83664298,3149.8,3148.8,0.65077509]
[1768203624330,0.83664298,3149.7,3148.8,0.65077509]
[1768203624533,0.15891,3150.4,3148.8,0.65077509]
[1768203624534,1.84503806,3150.3,3148.8,0.65077509]
[1768203624724,1.4697241,3150.2,3148.8,0.00309133]
[1768203624923,0.83704061,3150.1,3148.8,0.00309133]
[1768203626129,1.4697241,3150.1,3148.8,0.00309133]
[1768203626330,0.83704061,3150.0,3148.8,0.00309133]
[1768203648449,7.10760109,3149.9,3147.9,2.84847276]
[1768203648650,1.21236658,3148.4,3146.5,0.70194573]
[1768203648949,2.04940719,3148.3,3146.5,0.70194573]
[1768203649154,0.83704061,3148.2,3146.5,0.70194573]
[1768203649449,0.83979019,3148.2,3146.9,0.68212573]
[1768203649756,0.00274958,3148.2,3146.9,0.68212573]
[1768203659654,1.21511616,3148.2,3146.5,0.70431284]
[1768203659868,0.85236442,3148.1,3146.5,0.70431284]
[1768203660057,0.85236442,3148.0,3146.5,0.70431284]
[1768203660260,1.93071725,3148.2,3146.5,0.70431284]
[1768203660463,0.85232628,3148.1,3146.5,0.70431284]
[1768203660658,0.85232628,3148.0,3146.5,0.70431284]
[1768203660856,1.93071725,3148.2,3146.5,0.70431284]
[1768203661155,0.85232617,3148.1,3146.5,0.70431284]
[1768203661353,0.85232617,3148.0,3146.5,0.70431284]
[1768203661561,1.93071725,3148.2,3146.5,0.70431284]
[1768203661756,0.85200687,3148.1,3146.5,0.70431284]
[1768203661956,0.85200687,3148.0,3146.5,0.70431284]
[1768203662267,0.71835067,3148.2,3146.5,0.70431284]
[1768203662467,0.85177202,3148.1,3146.5,0.70431284]
[1768203662668,0.71835067,3148.2,3146.5,0.70431284]
[1768203662962,0.85177575,3148.1,3146.5,0.70431284]
[1768203663166,0.85177575,3148.0,3146.5,0.70431284]
[1768203663358,0.71835067,3148.2,3146.5,0.70431284]
[1768203663558,0.85158149,3148.1,3146.5,0.70431284]
[1768203663858,0.71835067,3148.2,3146.5,0.70431284]
[1768203664058,0.85158097,3148.1,3146.5,0.70431284]
[1768203664263,0.71835067,3148.2,3146.5,0.70431284]
[1768203664467,0.85647593,3148.1,3146.5,0.70431284]
[1768203664664,0.71835067,3148.2,3146.5,0.70431284]
[1768203664866,0.85647553,3148.1,3146.5,0.70431284]
[1768203665064,0.71835067,3148.2,3146.5,0.70431284]
[1768203665260,0.85648432,3148.1,3146.5,0.70431284]
[1768203665458,0.71835067,3148.2,3146.5,0.70431284]
[1768203665665,0.85637501,3148.1,3146.5,0.70431284]
[1768203665861,0.71835067,3148.2,3146.5,0.70431284]
[1768203666065,0.85637506,3148.1,3146.5,0.70431284]
[1768203666264,0.71835067,3148.2,3146.5,0.70431284]
[1768203666465,0.85632684,3148.1,3146.5,0.70431284]
[1768203666665,0.71835067,3148.2,3146.5,0.70431284]
[1768203666972,0.85633124,3148.1,3146.5,0.70431284]
[1768203667171,0.85638273,3148.0,3146.5,0.70431284]
[1768203667358,0.71835067,3148.2,3146.5,0.70431284]
[1768203667560,1.21236658,3147.9,3146.5,0.70431284]
[1768203667772,0.82786811,3147.8,3146.5,0.02218711]
[1768203669768,0.15903,3148.1,3146.5,0.88091204]
[1768203669969,0.85626108,3148.0,3146.5,0.88091204]
[1768203670174,0.85626108,3147.9,3146.5,0.88091204]
[1768203670470,0.15903,3148.1,3146.5,0.88091204]
[1768203670671,0.85642966,3148.0,3146.5,0.88091204]
[1768203670874,0.85642966,3147.9,3146.5,0.88091204]
[1768203671068,0.15903,3148.1,3146.5,0.88091204]
[1768203671269,0.85658354,3148.0,3146.5,0.88091204]
[1768203671470,0.85658354,3147.9,3146.5,0.88091204]
[1768203671770,0.15903,3148.1,3146.5,0.88091204]
[1768203671976,0.85659524,3148.0,3146.5,0.88091204]
[1768203672163,0.85659524,3147.9,3146.5,0.88091204]
[1768203672363,0.15903,3148.1,3146.5,0.88091204]
[1768203672568,0.8568094,3148.0,3146.5,0.88091204]
[1768203672771,0.15903,3148.1,3146.5,0.88091204]
[1768203672772,0.8568094,3147.9,3146.5,0.88091204]
[1768203672977,0.15903,3148.1,3146.5,0.88091204]
[1768203673171,0.85681229,3148.0,3146.5,0.88091204]
[1768203673373,0.85681229,3147.9,3146.5,0.88091204]
[1768203673570,0.85681229,3147.8,3146.5,0.88091204]
[1768203673770,0.15903,3148.1,3146.5,0.88091204]
[1768203673976,0.85711568,3148.0,3146.5,0.88091204]
[1768203674174,0.85711568,3147.9,3146.5,0.88091204]
[1768203674371,0.85711568,3147.8,3146.5,0.88091204]
[1768203674571,0.15903,3148.1,3146.5,0.88091204]
[1768203674876,0.85746682,3148.0,3146.5,0.88091204]
[1768203675079,0.85746682,3147.9,3146.5,0.88091204]
[1768203675379,0.85746682,3147.8,3146.5,0.88091204]
[1768203675568,0.85746682,3147.7,3146.5,0.88091204]
[1768203675769,0.15903,3148.1,3146.5,0.88091204]
[1768203675972,0.85801738,3148.0,3146.5,0.88091204]
[1768203676176,0.85801738,3147.9,3146.5,0.88091204]
[1768203676476,0.85801738,3147.8,3146.5,0.88091204]
[1768203676680,0.85801738,3147.7,3146.5,0.88091204]
[1768203676882,0.15903,3148.1,3146.5,0.88091204]
[1768203677085,0.85857165,3148.0,3146.5,0.88091204]
[1768203677285,0.85857165,3147.9,3146.5,0.88091204]
[1768203677577,0.85857165,3147.8,3146.5,0.88091204]
[1768203677780,0.85857165,3147.7,3146.5,0.88091204]
[1768203677979,0.85857165,3147.6,3146.5,0.88091204]
[1768203678173,0.86028171,3147.5,3146.5,0.88091204]
[1768203678371,0.15903,3148.1,3146.5,0.88091204]
[1768203678575,0.86031527,3148.0,3146.5,0.88091204]
[1768203678775,0.86031527,3147.9,3146.5,0.88091204]
[1768203681281,1.21398693,3147.8,3146.5,2.09489897]
[1768203681581,0.86031527,3147.7,3146.5,2.09489897]
[1768203682084,0.86031527,3147.6,3146.5,2.09489897]
[1768203682382,0.86031527,3147.5,3146.5,2.09489897]
[1768203682581,0.86031527,3147.4,3146.5,2.09489897]
[1768203682882,1.21398693,3147.9,3146.6,0.84592063]
[1768203683180,0.86047631,3147.8,3146.7,1.21398693]
[1768203683372,0.86047631,3147.7,3146.7,1.21398693]
[1768203683571,0.86047631,3147.6,3146.7,1.21398693]
[1768203683783,0.86047631,3147.5,3146.5,1.23617404]
[1768203684085,0.86047631,3147.4,3146.5,1.23617404]
[1768203684286,0.86047631,3147.3,3146.5,1.23617404]
[1768203684478,1.21398693,3147.7,3146.5,1.23617404]
[1768203684678,0.8607547,3147.6,3146.5,1.23617404]
[1768203684880,0.8607547,3147.5,3146.5,1.23617404]
[1768203685181,0.8607547,3147.4,3146.5,1.23617404]
[1768203685384,0.8607547,3147.3,3146.5,1.23617404]
[1768203685679,0.86700526,3148.0,3146.5,2.08209467]
[1768203685876,1.21398693,3147.8,3146.5,2.08209467]
[1768203686072,0.86094062,3147.7,3146.5,2.08209467]
[1768203686279,0.86094062,3147.6,3146.5,2.08209467]
[1768203686580,0.85856921,3147.5,3147.1,1.21398693]
[1768203686777,0.00274958,3148.2,3147.1,1.21398693]
[1768203686986,1.21398693,3148.1,3146.8,0.84592063]
[1768203689189,2.27513653,3148.2,3146.9,1.21398693]
[1768203689482,0.00274958,3148.2,3147.6,1.21398693]
[1768203689683,0.00274958,3148.2,3147.4,2.05990756]
[1768203691587,0.00274958,3148.2,3147.5,0.84592063]
[1768203691787,0.00274958,3148.2,3147.6,1.21398693]
[1768203698092,0.00274958,3148.2,3147.5,0.84592063]
[1768203716309,0.86491762,3148.1,3147.5,0.84592063]
[1768203716514,0.00274958,3148.2,3147.5,0.84592063]
[1768203716717,0.86491927,3148.1,3147.5,0.84592063]
[1768203717015,0.00274958,3148.2,3147.5,0.84592063]
[1768203717322,0.86491746,3148.1,3147.5,0.84592063]
[1768203717518,0.00274958,3148.2,3147.5,0.84592063]
[1768203717816,0.86521743,3148.1,3147.5,0.84592063]
[1768203718021,0.00274958,3148.2,3147.5,0.84592063]
[1768203718218,0.86521736,3148.1,3147.5,0.84592063]
[1768203718425,0.86568024,3148.0,3147.5,0.84592063]
[1768203718633,0.00274958,3148.2,3147.5,0.84592063]
[1768203718833,0.86566095,3148.1,3147.5,0.84592063]
[1768203719132,0.86566095,3148.0,3147.5,0.84592063]
[1768203719325,0.00274958,3148.2,3147.5,0.84592063]
[1768203719525,0.86589517,3148.1,3147.5,0.84592063]
[1768203719725,0.86589517,3148.0,3147.5,0.84592063]
[1768203719926,0.00274958,3148.2,3147.5,0.84592063]
[1768203720127,0.86589404,3148.1,3147.5,0.84592063]
[1768203720327,0.86589404,3148.0,3147.5,0.84592063]
[1768203720528,0.00274958,3148.2,3147.5,0.84592063]
[1768203720735,0.86591945,3148.1,3147.5,0.84592063]
[1768203721031,0.86591945,3148.0,3147.5,0.84592063]
[1768203721233,0.00274958,3148.2,3147.5,0.84592063]
[1768203721432,0.86592627,3148.1,3147.5,0.84592063]
[1768203721633,0.86592627,3148.0,3147.5,0.84592063]
[1768203721932,0.00274958,3148.2,3147.1,2.34992612]
[1768203722127,0.86592079,3148.1,3147.2,1.13593919]
[1768203722329,0.86592079,3148.0,3147.2,1.13593919]
[1768203722519,0.00274958,3148.2,3147.2,1.13593919]
[1768203722723,0.86589509,3148.1,3147.2,1.13593919]
[1768203722931,0.86589509,3148.0,3147.2,1.13593919]
[1768203723130,0.00274958,3148.2,3147.2,1.13593919]
[1768203723331,0.86588258,3148.1,3147.2,1.13593919]
[1768203723521,0.86588258,3148.0,3147.2,1.13593919]
[1768203723726,0.00274958,3148.2,3147.2,1.13593919]
[1768203723930,0.86588017,3148.1,3147.2,1.13593919]
[1768203724132,0.86588017,3148.0,3147.2,1.13593919]
[1768203724334,0.00274958,3148.2,3147.2,1.13593919]
[1768203724533,1.21398693,3147.9,3146.8,4.37246912]
[1768203724732,0.86703627,3147.8,3146.8,4.37246912]
[1768203725035,0.86703627,3147.7,3146.8,4.37246912]
[1768203725235,1.21398693,3148.1,3146.8,4.37246912]
[1768203725431,0.86672525,3148.0,3146.8,4.37246912]
[1768203725629,0.86672525,3147.9,3146.8,5.58645605]
[1768203725829,0.86672525,3147.8,3147.2,2.40545605]
[1768203726031,0.00274958,3148.2,3147.3,1.19146912]
[1768203731343,0.00274958,3148.2,3146.9,2.42565957]
[1768203731544,1.21673651,3148.2,3146.9,2.42565957]
[1768203732544,1.21673651,3148.2,3146.9,1.21167264]
[1768203732745,1.21673651,3148.2,3146.9,2.42565957]
[1768203732946,1.21673651,3148.2,3146.9,1.21167264]
[1768203733243,1.21673651,3148.2,3146.9,2.42565957]
[1768203737346,1.21673651,3148.2,3146.9,1.21167264]
[1768203738048,0.86219304,3148.1,3146.9,1.21167264]
[1768203738246,0.86219304,3148.0,3146.9,1.21167264]
[1768203738549,0.86219304,3147.9,3146.9,1.21167264]
[1768203738749,0.86219304,3147.8,3146.9,1.21167264]
[1768203738940,1.21673651,3148.2,3146.9,1.21167264]
[1768203739140,0.86217318,3148.1,3146.9,1.21167264]
[1768203739341,0.86217318,3148.0,3146.9,1.21167264]
[1768203739541,0.86217318,3147.9,3146.9,2.42565957]
[1768203739743,0.86217318,3147.8,3146.9,2.42565957]
[1768203739949,0.00274958,3148.2,3146.9,2.42565957]
[1768203740149,2.07613857,3148.1,3146.9,2.42565957]
[1768203740351,1.21398693,3147.9,3146.6,1.21398693]
[1768203740549,0.86215164,3147.8,3146.6,1.21398693]
[1768203741250,0.86215164,3147.8,3146.6,2.42565957]
[1768203741449,0.86215164,3147.8,3146.6,1.21167264]
[1768203741645,1.25214331,3148.2,3146.6,1.21167264]
[1768203741851,0.86213705,3148.1,3146.6,1.21167264]
[1768203742041,0.86213705,3148.0,3146.6,1.21167264]
[1768203742344,0.86213705,3147.9,3146.6,1.21167264]
[1768203742650,0.86213705,3147.8,3146.6,1.21167264]
[1768203742947,0.86214119,3147.7,3146.6,1.21167264]
[1768203743154,1.24939373,3148.1,3146.6,1.21167264]
[1768203743449,0.86213161,3148.0,3146.6,1.21167264]
[1768203743649,0.86213161,3147.9,3146.6,1.21167264]
[1768203743853,0.86213161,3147.8,3146.6,1.21167264]
[1768203744047,0.86213161,3147.7,3146.6,1.21167264]
[1768203744346,0.00274958,3148.2,3146.6,1.21167264]
[1768203744553,0.86217108,3148.1,3146.6,1.21167264]
[1768203744748,0.86217108,3148.0,3146.6,1.21167264]
[1768203744950,0.86217108,3147.9,3146.6,1.21167264]
[1768203745153,0.86217108,3147.8,3146.6,1.21167264]
[1768203745352,0.86217108,3147.7,3146.6,1.21167264]
[1768203745646,0.00274958,3148.2,3146.5,0.02218711]
[1768203745647,0.86202892,3147.6,3146.5,0.02218711]
[1768203745961,0.86202892,3147.5,3146.5,0.02218711]
[1768203746251,0.86202892,3147.4,3146.5,0.02218711]
[1768203746558,0.86202892,3147.3,3146.5,0.02218711]
[1768203746754,0.86202892,3147.2,3146.5,0.02218711]
[1768203747058,1.24939373,3147.6,3146.5,0.02218711]
[1768203747357,0.86149766,3147.5,3146.5,0.02218711]
[1768203747555,0.86149766,3147.4,3146.5,0.02218711]
[1768203747758,0.86149766,3147.3,3146.5,0.02218711]
[1768203747958,0.86149766,3147.2,3146.5,0.02218711]
[1768203748262,0.86090544,3147.1,3146.5,0.02218711]
[1768203748459,1.24939373,3147.6,3146.5,0.01859626]
[1768203748651,2.11032481,3147.5,3146.5,0.01500541]
[1768203748847,2.46325874,3147.3,3146.5,0.01500541]
[1768203749052,2.11032481,3147.2,3145.8,1.21167264]
[1768203749258,0.86093108,3147.1,3145.8,1.21167264]
[1768203749560,0.86093108,3147.0,3145.8,1.21167264]
[1768203749860,0.86093108,3146.9,3145.8,1.21167264]
[1768203750051,1.24939373,3147.2,3145.8,1.21422997]
[1768203750253,0.86031917,3147.1,3145.8,1.21422997]
[1768203750453,0.86031917,3147.0,3145.8,1.21422997]
[1768203750653,0.86031917,3146.9,3145.8,1.21422997]
[1768203750855,1.24939373,3147.2,3145.8,1.21422997]
[1768203751063,0.85974236,3147.1,3145.8,1.21422997]
[1768203751256,0.85974236,3147.0,3145.8,1.21422997]
[1768203751458,0.85974236,3146.9,3145.8,1.21422997]
[1768203751663,1.24939373,3147.2,3145.8,1.21422997]
[1768203751852,0.85951271,3147.1,3145.8,1.21422997]
[1768203752052,1.24939373,3147.2,3145.8,1.21422997]
[1768203752053,0.85951271,3147.0,3145.8,1.21422997]
[1768203752254,1.24939373,3147.2,3145.8,1.21422997]
[1768203752460,0.85928119,3147.1,3145.8,1.21422997]
[1768203755260,2.20065032,3147.1,3145.8,1.21422997]
[1768203755565,0.85928119,3147.0,3145.8,1.21422997]
[1768203755759,1.34136913,3147.1,3145.8,1.21422997]
[1768203755954,0.85917328,3147.0,3145.8,1.21422997]
[1768203756264,1.34136913,3147.1,3145.8,1.21422997]
[1768203756460,0.85902675,3147.0,3145.8,0.00255733]
[1768203756761,1.34136913,3147.0,3145.8,0.00255733]
[1768203765167,0.85878401,3146.9,3145.8,0.00255733]
[1768203765366,1.34136913,3147.0,3145.8,0.00255733]
[1768203765564,0.85878392,3146.9,3145.8,0.00255733]
[1768203765866,1.34136913,3147.0,3145.8,0.00255733]
[1768203766068,0.85880482,3146.9,3145.8,0.00255733]
[1768203766261,1.34136913,3147.0,3145.8,0.00255733]
[1768203766462,0.85891134,3146.9,3145.8,0.00255733]
[1768203766762,1.34136913,3147.0,3145.8,0.00255733]
[1768203767065,0.85891349,3146.9,3145.8,0.00255733]
[1768203767264,1.34136913,3147.0,3145.8,0.00255733]
[1768203767465,0.85903944,3146.9,3145.8,0.00255733]
[1768203767661,1.34136913,3147.0,3145.8,0.00255733]
[1768203767862,0.8590396,3146.9,3145.8,0.00255733]
[1768203768064,1.34136913,3147.0,3145.8,0.00255733]
[1768203768265,0.85903838,3146.9,3145.8,0.00255733]
[1768203768465,1.34136913,3147.0,3145.8,0.00255733]
[1768203768665,0.85919644,3146.9,3145.8,0.00255733]
[1768203768867,1.34136913,3147.0,3145.8,0.00255733]
[1768203769057,0.85919628,3146.9,3145.8,0.00255733]
[1768203769257,0.85939196,3146.8,3145.8,0.00255733]
[1768203769457,0.15906,3147.5,3145.8,0.00255733]
[1768203769458,1.34136913,3147.4,3145.8,0.00255733]
[1768203769655,2.20075733,3147.3,3145.8,0.00255733]
[1768203769859,1.34136913,3147.1,3145.8,0.00255733]
[1768203770062,2.20075733,3147.0,3145.8,0.00255733]
[1768203770261,0.8593882,3146.9,3145.8,0.00255733]
[1768203770454,2.20075733,3146.9,3145.8,0.00255733]
[1768203770656,0.8593882,3146.8,3145.8,0.00255733]
[1768203772071,1.34136913,3146.9,3145.8,0.00255733]
[1768203772370,0.85990095,3146.8,3145.8,0.00255733]
[1768203772566,1.34136913,3146.9,3145.8,0.00255733]
[1768203772766,0.86023544,3146.8,3145.8,0.00255733]
[1768203772962,0.86023544,3146.7,3145.8,0.00255733]
[1768203773170,1.34136913,3146.9,3145.8,0.00255733]
[1768203773370,0.86063242,3146.8,3145.8,0.00255733]
[1768203773563,0.86063242,3146.7,3145.8,0.00255733]
[1768203773763,1.34136913,3146.9,3145.8,0.00255733]
[1768203773960,0.86062459,3146.8,3145.8,0.00255733]
[1768203774159,0.86062459,3146.7,3145.8,0.00255733]
[1768203775671,0.86062459,3146.6,3145.8,0.00255733]
[1768203775872,1.34136913,3147.1,3145.8,0.00255733]
[1768203776075,0.86180816,3147.0,3145.8,0.00255733]
[1768203776374,0.86180816,3146.9,3145.8,0.00255733]
[1768203776575,0.86180816,3146.8,3145.8,0.00255733]
[1768203776777,0.86180816,3146.7,3145.8,0.00255733]
[1768203777073,0.86180816,3146.6,3145.8,0.00255733]
[1768203777371,0.86180816,3146.5,3145.8,0.00255733]
[1768203777577,1.34136913,3147.1,3145.8,0.00255733]
[1768203777773,0.86237986,3147.0,3145.8,0.00255733]
[1768203777966,0.86237986,3146.9,3145.8,0.00255733]
[1768203778167,0.86237986,3146.8,3145.8,0.00255733]
[1768203778368,0.86237986,3146.7,3145.8,0.00255733]
[1768203778575,0.86237986,3146.6,3145.8,0.00255733]
[1768203778773,0.86237986,3146.5,3145.8,0.00255733]
[1768203778968,1.34136913,3147.1,3145.8,0.00255733]
[1768203779168,0.86272227,3147.0,3145.8,0.00255733]
[1768203779369,0.86272227,3146.9,3145.8,0.00255733]
[1768203779673,0.86272227,3146.8,3145.8,0.00255733]
[1768203779872,0.86272227,3146.7,3145.8,0.00255733]
[1768203780076,0.86272227,3146.6,3145.8,0.00255733]
[1768203780278,0.86272227,3146.5,3145.8,0.00255733]
[1768203780475,1.34136913,3147.0,3145.8,0.00255733]
[1768203780676,0.86277503,3146.9,3145.8,0.00255733]
[1768203780976,0.86277503,3146.8,3145.8,0.00255733]
[1768203781276,0.86277503,3146.7,3145.8,0.00255733]
[1768203781473,0.86277503,3146.6,3145.8,0.00255733]
[1768203781679,0.86277503,3146.5,3145.8,0.00255733]
[1768203781877,1.34136913,3147.0,3145.8,0.00255733]
[1768203782079,0.86287163,3146.9,3145.8,0.00255733]
[1768203782277,0.86287163,3146.8,3145.8,0.00255733]
[1768203782477,0.86287163,3146.7,3145.8,0.00255733]
[1768203782687,0.86287163,3146.6,3145.8,0.00255733]
[1768203782982,0.86287163,3146.5,3145.8,0.00255733]
[1768203783175,0.86287163,3146.4,3145.8,0.00255733]
[1768203783378,1.34136913,3147.0,3145.8,0.00255733]
[1768203783582,0.86298362,3146.9,3145.8,0.00255733]
[1768203783880,0.86298362,3146.8,3145.8,0.00255733]
[1768203784184,0.86298362,3146.7,3145.8,0.00255733]
[1768203784370,0.86298362,3146.6,3145.8,0.00255733]
[1768203784572,0.86298362,3146.5,3145.8,0.00255733]
[1768203784771,0.86298362,3146.4,3145.8,0.00255733]
[1768203784973,1.34136913,3147.0,3145.8,0.00255733]
[1768203785175,0.87052938,3146.9,3145.8,0.00255733]
[1768203785482,0.87052938,3146.8,3145.8,0.00255733]
[1768203785780,0.87052938,3146.7,3145.8,0.00255733]
[1768203785981,0.87052938,3146.6,3145.8,0.00255733]
[1768203786283,0.87052938,3146.5,3145.8,0.00255733]
[1768203786479,0.87052938,3146.4,3145.8,0.00255733]
[1768203786679,1.34136913,3147.0,3145.8,0.00255733]
[1768203786883,1.47908911,3146.8,3145.8,0.00255733]
[1768203787076,0.87057508,3146.7,3145.8,0.00255733]
[1768203787276,0.87057508,3146.6,3145.8,0.00255733]
[1768203787477,0.87057508,3146.5,3145.8,0.00255733]
[1768203787782,0.87057508,3146.4,3145.8,0.00255733]
[1768203787982,1.47908911,3146.8,3145.8,0.00255733]
[1768203788282,0.87059677,3146.7,3145.8,0.00255733]
[1768203788484,0.87059677,3146.6,3145.8,0.00255733]
[1768203788682,0.87059677,3146.5,3145.8,0.00255733]
[1768203788883,0.87059677,3146.4,3145.8,0.00255733]
[1768203789081,1.47908911,3146.8,3145.8,0.00255733]
[1768203789282,0.87061135,3146.7,3145.8,0.00255733]
[1768203789477,0.87061135,3146.6,3145.8,0.00255733]
[1768203789677,0.87061135,3146.5,3145.8,0.00255733]
[1768203789878,0.87061135,3146.4,3145.8,0.00255733]
[1768203790079,1.47908911,3146.8,3145.8,0.00255733]
[1768203790278,0.87063131,3146.7,3145.8,0.00255733]
[1768203790484,0.87063131,3146.6,3145.8,0.00255733]
[1768203790683,0.87063131,3146.5,3145.8,0.00255733]
[1768203790886,0.87063131,3146.4,3145.8,0.00255733]
[1768203791186,1.47908911,3146.8,3145.8,0.00255733]
[1768203791483,0.87064106,3146.7,3145.8,0.00255733]
[1768203791686,0.87064106,3146.6,3145.8,0.00255733]
[1768203791888,0.87064106,3146.5,3145.8,0.00255733]
[1768203792087,0.87064106,3146.4,3145.8,0.00255733]
[1768203792287,1.47908911,3146.8,3145.8,0.00255733]
[1768203792492,0.87064865,3146.7,3145.8,0.00255733]
[1768203792686,0.87064865,3146.6,3145.8,0.00255733]
[1768203792891,0.87064865,3146.5,3145.8,0.00255733]
[1768203793089,0.87064865,3146.4,3145.8,0.00255733]
[1768203793284,1.47908911,3146.8,3145.8,0.00255733]
[1768203793485,0.87065675,3146.7,3145.8,0.00255733]
[1768203793685,0.87065675,3146.6,3145.8,0.00255733]
[1768203793886,0.87065675,3146.5,3145.8,0.00255733]
[1768203794084,0.87065673,3146.4,3145.8,0.00255733]
[1768203794286,1.47908911,3146.8,3145.8,0.00255733]
[1768203794495,0.87066831,3146.7,3145.8,0.00255733]
[1768203794691,0.87066831,3146.6,3145.8,0.00255733]
[1768203794889,0.87066831,3146.5,3145.8,0.00255733]
[1768203795189,0.87066831,3146.4,3145.8,0.00255733]
[1768203795388,1.47908911,3146.8,3145.8,0.00255733]
[1768203795588,0.87074166,3146.7,3145.8,0.00255733]
[1768203795889,0.87074166,3146.6,3145.8,0.00255733]
[1768203796082,0.87074166,3146.5,3145.8,0.00255733]
[1768203796279,0.87074166,3146.4,3145.8,0.00255733]
[1768203796483,1.47908911,3146.8,3145.8,0.00255733]
[1768203796694,0.87121151,3146.7,3145.8,0.00255733]
[1768203796895,0.87121151,3146.6,3145.8,0.00255733]
[1768203797193,0.87121151,3146.5,3145.8,0.00255733]
[1768203797394,0.87121151,3146.4,3145.8,0.00255733]
[1768203797581,1.47908911,3146.8,3145.8,0.00255733]
[1768203797780,0.87126038,3146.7,3145.8,0.00255733]
[1768203797985,0.87126038,3146.6,3145.8,0.00255733]
[1768203798184,0.87126038,3146.5,3145.8,0.00255733]
[1768203798384,0.87126038,3146.4,3145.8,0.00255733]
[1768203798679,1.47908911,3146.8,3145.8,0.00255733]
[1768203798883,0.87126389,3146.7,3145.8,0.00255733]
[1768203799085,0.87126389,3146.6,3145.8,0.00255733]
[1768203799280,0.87126389,3146.5,3145.8,0.00255733]
[1768203799488,0.87126389,3146.4,3145.8,0.00255733]
[1768203799687,1.47908911,3146.8,3145.8,0.00255733]
[1768203799886,0.87126311,3146.7,3145.8,0.00255733]
[1768203800096,0.87126311,3146.6,3145.8,0.00255733]
[1768203800288,0.87126311,3146.5,3145.8,0.00255733]
[1768203800489,0.87126311,3146.4,3145.8,0.00255733]
[1768203800790,1.47908911,3146.8,3145.8,0.00255733]
[1768203800988,0.87126292,3146.7,3145.8,0.00255733]
[1768203801189,0.87126292,3146.6,3145.8,0.00255733]
[1768203801391,0.87126292,3146.5,3145.8,0.00255733]
[1768203801590,0.87126292,3146.4,3145.8,0.00255733]
[1768203801787,1.47908911,3146.8,3145.8,0.00255733]
[1768203801989,0.87126318,3146.7,3145.8,0.00255733]
[1768203802194,0.87126177,3146.6,3145.8,0.00255733]
[1768203802395,0.87126177,3146.5,3145.8,0.00255733]
[1768203802597,0.87126177,3146.4,3145.8,0.00255733]
[1768203802789,1.47908911,3146.8,3145.8,0.00255733]
[1768203802988,2.26911327,3146.7,3145.8,0.00255733]
[1768203803192,0.87125709,3146.6,3145.8,0.00255733]
[1768203803389,0.87125709,3146.5,3145.8,0.00255733]
[1768203803683,0.87125709,3146.4,3145.8,0.00255733]
[1768203803886,1.39785618,3146.7,3145.8,0.00255733]
[1768203804095,0.8712549,3146.6,3145.8,0.00255733]
[1768203804301,0.8712549,3146.5,3145.8,0.00255733]
[1768203804490,0.8712549,3146.4,3145.8,0.00255733]
[1768203804693,1.39785618,3146.7,3145.8,0.00255733]
[1768203804894,0.87125079,3146.6,3145.8,0.00255733]
[1768203805092,0.87125079,3146.5,3145.8,0.00255733]
[1768203805293,0.87125079,3146.4,3145.8,0.00255733]
[1768203805498,1.39785618,3146.7,3145.8,0.00255733]
[1768203805699,0.87127892,3146.6,3145.8,0.00255733]
[1768203805900,0.87127892,3146.5,3145.8,0.00255733]
[1768203806198,0.87127892,3146.4,3145.8,0.00255733]
[1768203806397,1.39785618,3146.7,3145.8,0.00255733]
[1768203806599,0.87127689,3146.6,3145.8,0.00255733]
[1768203806791,0.87127689,3146.5,3145.8,0.00255733]
[1768203806987,0.87127689,3146.4,3145.8,0.00255733]
[1768203807193,1.39785618,3146.7,3145.8,0.00255733]
[1768203807399,0.87128036,3146.6,3145.8,0.00255733]
[1768203807601,0.87128036,3146.5,3145.8,0.00255733]
[1768203807798,0.87128036,3146.4,3145.8,0.00255733]
[1768203808000,1.39785618,3146.7,3145.8,0.00255733]
[1768203808201,2.26913297,3146.6,3145.9,1.21466912]
[1768203808499,0.87127679,3146.5,3145.9,1.21466912]
[1768203808698,0.87127679,3146.4,3145.9,1.21466912]
[1768203808900,1.39785618,3146.9,3145.8,0.00255733]
[1768203809100,0.87269072,3146.8,3145.8,1.21722645]
[1768203809290,0.87269072,3146.7,3145.8,1.21722645]
[1768203809495,0.87269072,3146.6,3145.8,1.21722645]
[1768203809798,0.87269072,3146.5,3145.8,1.21722645]
[1768203810101,0.87269072,3146.4,3145.8,1.21722645]
[1768203810296,1.39785618,3146.9,3143.5,9.08991058]
[1768203810297,1.21466912,3146.2,3144.7,3.99386157]
[1768203810499,1.21466912,3146.2,3143.5,9.08991058]
[1768203810500,0.15919,3144.9,3142.5,2.92263714]
[1768203810690,1.21466912,3143.7,3142.2,1.4783732]
[1768203810895,1.21466912,3144.2,3142.4,1.4783732]
[1768203811102,1.39949209,3144.1,3142.7,1.4783732]
[1768203811392,0.00247253,3144.1,3143.4,1.21466912]
[1768203811806,0.00247253,3144.1,3143.2,2.69304232]
[1768203812110,0.00247253,3144.1,3143.2,1.4783732]
[1768203812411,0.00247253,3144.1,3143.2,2.69304232]
[1768203813293,3.183,3145.1,3143.8,2.69304232]
[1768203813497,1.45770245,3145.0,3143.9,1.4783732]
[1768203813706,0.95977762,3144.9,3143.9,1.4783732]